fUSD/lending_fUSD_20241216
["ID","MTS","AMOUNT","RATE_DAILY","PERIOD"]
[345573954,1734361836811,-151.11,0.0002499,2]
[345573955,1734361836820,-151.11,0.0002499,2]
[345573956,1734361836829,-151.11,0.0002499,2]
[345573957,1734361836838,-151.11,0.0002499,2]
[345573958,1734361836847,-151.11,0.0002499,2]
[345573959,1734361836856,-151.11,0.0002499,2]
[345573960,1734361836866,-151.11,0.0002499,2]
[345573961,1734361836877,-151.11,0.0002499,2]
[345573962,1734361836886,-151.11,0.0002499,2]
[345573963,1734361836895,-500.0,0.00024998,3]
[345573964,1734361836904,-500.0,0.00024998,3]
[345573965,1734361836913,-500.0,0.00024998,3]
[345573966,1734361836925,-511.29,0.00024998,3]
[345573967,1734361836934,-500.0,0.00024998,3]
[345573968,1734361836944,-239.28712173,0.00024998,4]
[345573969,1734361836953,-6796.882,0.00024999,2]
[345573970,1734361836962,-500.0,0.00024999,2]
[345573971,1734361836972,-560.81,0.00024999,3]
[345573972,1734361836981,-5000.0,0.00024999,20]
[345573973,1734361836990,-500.0,0.00024999,3]
[345573974,1734361836999,-511.29,0.00024999,3]
[345573975,1734361837008,-511.29,0.00024999,3]
[345573976,1734361837018,-511.29,0.00024999,3]
[345573977,1734361837027,-511.29,0.00024999,3]
[345573978,1734361837036,-511.29,0.00024999,3]
[345573979,1734361837045,-511.29,0.00024999,3]
[345573980,1734361837055,-511.29,0.00024999,3]
[345573981,1734361837064,-511.29,0.00024999,3]
[345573982,1734361837073,-511.29,0.00024999,3]
[345573983,1734361837082,-511.29,0.00024999,3]
[345573984,1734361837092,-511.29,0.00024999,3]
[345573985,1734361837101,-511.29,0.00024999,3]
[345573986,1734361837110,-511.29,0.00024999,3]
[345573987,1734361837119,-511.29,0.00024999,3]
[345573988,1734361837128,-511.29,0.00024999,3]
[345573989,1734361837137,-511.29,0.00024999,3]
[345573990,1734361837147,-511.29,0.00024999,3]
[345573991,1734361837156,-511.29,0.00024999,3]
[345573992,1734361837165,-511.29,0.00024999,3]
[345573993,1734361837175,-511.29,0.00024999,3]
[345573994,1734361837184,-511.29,0.00024999,3]
[345573995,1734361837193,-511.39,0.00024999,3]
[345573996,1734361837202,-525.95,0.00024999,3]
[345573997,1734361837211,-525.95,0.00024999,3]
[345573998,1734361837220,-525.95,0.00024999,3]
[345573999,1734361837229,-525.95,0.00024999,3]
[345574000,1734361837238,-500.0,0.00024999,3]
[345574001,1734361837247,-525.95,0.00024999,3]
[345574002,1734361837258,-500.0,0.00024999,3]
[345574003,1734361837267,-525.95,0.00024999,3]
[345574004,1734361837276,-500.0,0.00024999,3]
[345574005,1734361837285,-500.0,0.00024999,3]
[345574006,1734361837294,-525.95,0.00024999,3]
[345574007,1734361837304,-500.0,0.00024999,3]
[345574008,1734361837313,-525.95,0.00024999,3]
[345574009,1734361837322,-525.95,0.00024999,3]
[345574010,1734361837331,-525.95,0.00024999,3]
[345574011,1734361837340,-525.95,0.00024999,3]
[345574012,1734361837349,-525.95,0.00024999,3]
[345574013,1734361837358,-525.95,0.00024999,3]
[345574014,1734361837367,-500.0,0.00024999,3]
[345574015,1734361837376,-525.95,0.00024999,3]
[345574016,1734361837385,-500.0,0.00024999,3]
[345574017,1734361837394,-500.0,0.00024999,3]
[345574018,1734361837405,-525.95,0.00024999,3]
[345574019,1734361837414,-445.08,0.00024999,3]
[345574020,1734361837424,-500.0,0.00024999,3]
[345574021,1734361837434,-525.95,0.00024999,3]
[345574022,1734361837443,-525.95,0.00024999,3]
[345574023,1734361837452,-525.95,0.00024999,3]
[345574024,1734361837461,-525.95,0.00024999,3]
[345574025,1734361837470,-500.0,0.00024999,3]
[345574026,1734361837479,-525.95,0.00024999,3]
[345574027,1734361837488,-525.95,0.00024999,3]
[345574028,1734361837498,-526.09909377,0.00024999,3]
[345574029,1734361837506,-542.75,0.00024999,3]
[345574030,1734361837515,-500.0,0.00024999,3]
[345574031,1734361837524,-500.0,0.00024999,3]
[345574032,1734361837533,-500.0,0.00024999,3]
[345574033,1734361837542,-312.9438121,0.00024999,3]
[345574034,1734361837551,-500.0,0.00024999,3]
[345574035,1734361837561,-500.0,0.00024999,3]
[345574036,1734361837570,-519.49496102,0.00024999,3]
[345574037,1734361837579,-270.17466692,0.00024999,3]
[345574038,1734361837587,-500.0,0.00024999,4]
[345574039,1734361837597,-500.0,0.00024999,4]
[345574040,1734361837606,-999.0,0.00024999,2]
[345574041,1734361837615,-500.0,0.00024999,4]
[345574042,1734361837624,-500.0,0.00024999,4]
[345574043,1734361837633,-500.0,0.00024999,4]
[345574044,1734361837642,-500.0,0.00024999,4]
[345574045,1734361837655,-500.0,0.00024999,4]
[345574046,1734361837664,-500.0,0.00024999,4]
[345574047,1734361837674,-500.0,0.00024999,4]
[345574048,1734361837683,-500.0,0.00024999,4]
[345574049,1734361837693,-2128.78352117,0.00024999,2]
[345574050,1734361837702,-559.81617007,0.00025,2]
[345574051,1734361837711,-332.26705468,0.00025,2]
[345574052,1734361837720,-76202.01566652,0.00025,4]
[345574053,1734361837734,-85015.79103094,0.00025,4]
[345574054,1734361837744,-26079.3100077,0.00025,4]
[345574061,1734361838354,-500.0,0.00024854,4]
[345574062,1734361838364,-500.0,0.00024866,4]
[345574063,1734361838374,-270.02242004,0.00024989,2]
[345574064,1734361838384,-270.02242004,0.0002499,2]
[345574065,1734361838393,-270.02242004,0.0002499,2]
[345574066,1734361838402,-19345.43078428,0.00025,4]
[345574067,1734361838414,-105334.05201146,0.00025,4]
[345574068,1734361838429,-2336.869332,0.00025,4]
[345574069,1734361838440,-2073.80211,0.00025,4]
[345574070,1734361838634,-30420.31994,0.00025,4]
[345574071,1734361838649,-15301.94331676,0.00025,4]
[345574072,1734361838658,-51510.93943987,0.00025,2]
[345574073,1734361838667,-143927.11724337,0.00025,2]
[345574074,1734361838682,-3167.6875582,0.00025,2]
[345574075,1734361838797,-15455663.4790745,0.00025,2]
[345574132,1734361840453,-123999.4783169,0.00025,2]
[345574133,1734361840466,-489.11612477,0.00025,2]
[345574134,1734361840510,-4227.73512,0.00025,2]
[345574135,1734361840521,-1162.66892173,0.00025,2]
[345574136,1734361840565,-157888.78296923,0.00025,2]
[345574158,1734361843393,-500.0,0.00024866,4]
[345574159,1734361843402,-52225.0,0.00025,2]
[345574160,1734361843554,-698.25,0.00025,2]
[345574161,1734361843566,-5900.32832584,0.00025,2]
[345574162,1734361843578,-317.25,0.00025,2]
[345574163,1734361843700,-3111.1848191,0.00025,2]
[345574164,1734361843713,-5267.0,0.00025,2]
[345574165,1734361843747,-744419.95010215,0.00025,2]
[345574168,1734361846382,-321.55368572,0.00024799,2]
[345574169,1734361846393,-178.44631428,0.00024799,2]
[345574170,1734361846403,-500.0,0.00024799,2]
[345574171,1734361846412,-500.0,0.00024799,2]
[345574172,1734361846422,-156.49791388,0.00024799,2]
[345574173,1734361846432,-8559.22671634,0.00025,2]
[345574174,1734361846446,-10870.96745676,0.00025,2]
[345574175,1734361846601,-10541.0,0.00025,2]
[345574176,1734361846613,-3927.204,0.00025,2]
[345574177,1734361846662,-150.0,0.00024757,2]
[345574178,1734361846671,-150.0,0.00024892,2]
[345574179,1734361846680,-23835.8957941,0.00025,2]
[345574180,1734361846723,-669161.03692874,0.00025,2]
[345574181,1734361846735,-353342.41168697,0.00025,2]
[345574182,1734361846778,-2430.72400244,0.00025,2]
[345574185,1734361849878,155.82712624,0.00022329,2]
[345574186,1734361866498,161.02,0.00010137,2]
[345574187,1734361866743,161.02,0.00016813,2]
[345574188,1734361870458,285.956,0.00021817,2]
[345574191,1734362007648,41939.0,0.00021,120]
[345574192,1734362079249,450.0,0.00013,2]
[345574196,1734362409362,5293.26200007,0.0001501,2]
[345574197,1734362663487,5601.15351677,0.00013,2]
[345574199,1734362708735,204167.58165923,0.0001,2]
[345574202,1734362776854,156.34,0.00010137,2]
[345574204,1734362829127,-300.0,0.00018899,2]
[345574205,1734362829149,-25490.63756359,0.000189,2]
[345574206,1734362829171,-417.6336,0.000197,2]
[345574207,1734362829193,-24683.78135835,0.0002,2]
[345574236,1734362881388,6961.51412439,0.00013,2]
[345574237,1734362881417,3030832.57578675,0.00013,2]
[345574239,1734362904459,-1700.0,0.00021393,120]
[345574243,1734362923286,3016.0,0.0002,120]
[345574247,1734362956107,-16193.16739042,0.0001901,2]
[345574248,1734362956132,-1146.30331658,0.0001911,2]
[345574249,1734362956155,-841.16,0.00019279,2]
[345574250,1734362956176,-336.97718162,0.0001988,2]
[345574251,1734362956196,-514.0,0.0001997,2]
[345574252,1734362956218,-28869.43971138,0.0001998,2]
[345574253,1734362970082,-12210.00981653,0.0001998,2]
[345574254,1734362970103,-15629.91,0.0001998,2]
[345574255,1734362970125,-500.0,0.00019999,2]
[345574256,1734362970147,-222.50205937,0.00019999,2]
[345574257,1734362970168,-7053.1899041,0.0002,2]
[345574272,1734363031638,-8025.98253503,0.0002,2]
[345574273,1734363031653,-1058.7,0.0002,2]
[345574274,1734363031668,-275.06940196,0.0002,2]
[345574275,1734363031682,-10623.0,0.0002,2]
[345574276,1734363031696,-265.063,0.0002,2]
[345574277,1734363031710,-10518.30985269,0.0002,2]
[345574278,1734363031721,-42677.64778347,0.0002,4]
[345574279,1734363031740,-8904.7117409,0.0002,4]
[345574280,1734363031754,-6865.75023366,0.0002,4]
[345574281,1734363031837,-258636.00079221,0.0002,4]
[345574282,1734363031851,-3838.99881092,0.0002,4]
[345574283,1734363031869,-26813.0,0.0002,4]
[345574440,1734363037550,-1786.27427399,0.0002,4]
[345574441,1734363037561,-4576.54432288,0.00020687,2]
[345574442,1734363037883,-13651.12764293,0.00020687,2]
[345574443,1734363037892,-1000.0,0.00020859,2]
[345574444,1734363037902,-445.87,0.00020866,2]
[345574445,1734363037911,-150.58574447,0.000209,2]
[345574446,1734363037920,-1446.72,0.00020949,2]
[345574447,1734363037934,-5000.0,0.00020987,10]
[345574448,1734363037943,-152.49770553,0.00021,5]
[345574449,1734363037952,-1787.29749357,0.00021,5]
[345574450,1734363037965,-313.81790943,0.00021059,2]
[345574451,1734363037974,-739.28,0.00021109,2]
[345574452,1734363037983,-746.01,0.00021137,2]
[345574453,1734363037992,-755.53,0.00021142,2]
[345574454,1734363038001,-770.0,0.00021146,120]
[345574455,1734363038011,-740.88,0.00021146,2]
[345574456,1734363038020,-18227.67196578,0.00021155,2]
[345574457,1734363038030,-759.57,0.00021159,2]
[345574458,1734363038040,-747.51,0.00021177,2]
[345574459,1734363038049,-750.59,0.00021204,2]
[345574460,1734363038060,-755.44,0.00021204,2]
[345574461,1734363038070,-745.41,0.00021217,2]
[345574462,1734363038079,-757.33,0.00021237,2]
[345574463,1734363038089,-744.42,0.00021266,2]
[345574464,1734363038098,-746.93,0.0002127,2]
[345574465,1734363038109,-753.61,0.00021273,2]
[345574466,1734363038118,-68.18191025,0.00021279,2]
[345574467,1734363038133,-685.44808975,0.00021279,2]
[345574468,1734363038142,-750.05,0.00021298,2]
[345574469,1734363038152,-200.0,0.00021312,2]
[345574470,1734363038161,-748.55,0.00021324,2]
[345574471,1734363038171,-754.97,0.00021331,2]
[345574472,1734363038180,-743.06,0.00021338,2]
[345574474,1734363038190,-757.47,0.00021358,2]
[345574475,1734363038199,-740.74,0.00021387,2]
[345574476,1734363038209,-762.27,0.0002139,2]
[345574477,1734363038219,-250.0,0.00021392,2]
[345574479,1734363038228,-300.0,0.00021393,120]
[345574481,1734363038237,-515.20973672,0.00021394,2]
[345574482,1734363038248,-237.70026328,0.00021394,2]
[345574483,1734363038257,-749.59,0.00021402,2]
[345574484,1734363038267,-343.19992625,0.00021402,2]
[345574485,1734363038285,-507.57007375,0.00021402,2]
[345574486,1734363038295,-1001.04,0.00021405,2]
[345574487,1734363038304,-750.85,0.00021424,2]
[345574488,1734363038313,-151.35,0.00021453,2]
[345574489,1734363038322,-735.29,0.00021453,2]
[345574490,1734363038331,-754.29,0.00021453,2]
[345574491,1734363038341,-755.72,0.00021453,2]
[345574492,1734363038350,-739.02,0.00021453,2]
[345574493,1734363038360,-745.26,0.00021453,2]
[345574494,1734363038370,-841.16,0.00021543,2]
[345574496,1734363038379,-250.0,0.00021616,2]
[345574498,1734363038388,-18227.67196578,0.00021623,2]
[345574500,1734363038397,-445.87,0.00021638,2]
[345574501,1734363038406,-500.0,0.000218,2]
[345574502,1734363038415,-500.0,0.000218,2]
[345574503,1734363038424,-1000.0,0.00021808,2]
[345574504,1734363038434,-381.28,0.0002181,2]
[345574505,1734363038443,-200.0,0.00021921,2]
[345574506,1734363038453,-500.0,0.00021945,2]
[345574507,1734363038464,-18227.67196578,0.00022091,2]
[345574508,1734363038473,-162.29,0.00022098,2]
[345574509,1734363038483,-1000.0,0.00022104,2]
[345574510,1734363038492,-779.4105154,0.00022129,2]
[345574511,1734363038502,-845.47,0.0002218,2]
[345574512,1734363038511,-1262.295,0.00022229,2]
[345574513,1734363038521,-3765.0,0.00022229,2]
[345574514,1734363038530,-930.0,0.00022229,2]
[345574515,1734363038539,-3630.0,0.00022229,2]
[345574516,1734363038549,-535.0,0.00022229,2]
[345574517,1734363038558,-1263.0,0.00022229,2]
[345574518,1734363038567,-2007.0,0.00022229,2]
[345574519,1734363038577,-3882.0,0.00022229,2]
[345574520,1734363038586,-564.0,0.00022229,2]
[345574521,1734363038596,-150.0,0.00022229,2]
[345574522,1734363038605,-273.442,0.00022229,2]
[345574523,1734363038615,-456.16,0.00022229,2]
[345574524,1734363038624,-1896.0,0.00022229,2]
[345574525,1734363038633,-1167.0,0.00022229,2]
[345574526,1734363038644,-445.87,0.0002241,2]
[345574527,1734363038654,-757.26,0.0002245,2]
[345574528,1734363038663,-850.77,0.00022472,2]
[345574529,1734363038672,-744.42,0.00022473,2]
[345574530,1734363038682,-304.68,0.00022478,2]
[345574531,1734363038691,-150.0,0.00022488,4]
[345574532,1734363038700,-150.00000001,0.00022488,4]
[345574533,1734363038709,-904.35,0.000225,2]
[345574534,1734363038718,-755.74,0.000225,2]
[345574535,1734363038727,-740.59,0.000225,2]
[345574536,1734363038736,-749.03,0.000225,2]
[345574537,1734363038746,-752.4,0.000225,2]
[345574538,1734363038755,-755.17,0.000225,2]
[345574539,1734363038763,-1000.0,0.0002252,2]
[345574540,1734363038773,-18227.67196578,0.00022559,2]
[345574541,1734363038782,-250.0,0.0002258,2]
[345574542,1734363038791,-9683.45,0.0002263,5]
[345574543,1734363038801,-155.82712624,0.0002263,2]
[345574544,1734363038810,-760.67,0.0002263,2]
[345574545,1734363038819,-2000.0,0.00022707,2]
[345574546,1734363038828,-151.53,0.00022768,30]
[345574547,1734363038838,-23900.0,0.00022774,2]
[345574548,1734363038848,-569.0,0.00022795,2]
[345574549,1734363038857,-156.34,0.00022822,2]
[345574550,1734363038871,-155.82712624,0.00022932,2]
[345574551,1734363038881,-313.81790943,0.0002298,2]
[345574552,1734363038890,-676.2056131,0.00023,2]
[345574553,1734363038900,-200.0,0.00023,2]
[345574554,1734363038909,-18227.67196578,0.00023028,2]
[345574555,1734363038918,-500.0,0.00023142,7]
[345574556,1734363038927,-445.87,0.00023182,2]
[345574557,1734363038936,-155.82712624,0.00023205,2]
[345574558,1734363038945,-151.24,0.00023358,2]
[345574559,1734363038954,-17327.72,0.00023368,2]
[345574560,1734363038963,-500.0,0.00023415,7]
[345574561,1734363038971,-879.9153,0.00023415,2]
[345574562,1734363038980,-150.0,0.00023434,2]
[345574563,1734363038989,-1000.0,0.00023466,2]
[345574564,1734363038998,-781.0,0.00023489,2]
[345574565,1734363039007,-161.02,0.0002349,2]
[345574566,1734363039017,-18227.67196578,0.00023496,2]
[345574567,1734363039026,-850.77,0.00023542,2]
[345574568,1734363039035,-2000.0,0.00023548,2]
[345574569,1734363039044,-675.54,0.00023689,7]
[345574570,1734363039054,-6249.6252,0.00023707,2]
[345574571,1734363039067,-545.332,0.0002375,2]
[345574572,1734363039076,-150.0,0.0002379,2]
[345574573,1734363039085,-65056.42,0.00023807,2]
[345574574,1734363039095,-841.16,0.00023807,2]
[345574575,1734363039105,-755.64,0.00023839,2]
[345574576,1734363039119,-2190.602,0.00023927,5]
[345574577,1734363039128,-189.507,0.00023927,5]
[345574578,1734363039138,-445.87,0.00023954,2]
[345574579,1734363039147,-250.0,0.00023957,2]
[345574580,1734363039158,-18227.67196578,0.00023964,2]
[345574581,1734363039167,-9836.79051668,0.00024,2]
[345574582,1734363039176,-3000.0,0.000241,2]
[345574583,1734363039185,-2441.0,0.000241,2]
[345574584,1734363039195,-150.0,0.00024207,2]
[345574585,1734363039206,-264.20246488,0.00024284,2]
[345574587,1734363039219,-769.47,0.00024384,2]
[345574589,1734363039228,-769.47,0.00024384,2]
[345574591,1734363039237,-769.47,0.00024384,2]
[345574593,1734363039247,-769.47,0.00024384,2]
[345574594,1734363039255,-769.47,0.00024384,2]
[345574595,1734363039264,-760.89,0.00024384,2]
[345574597,1734363039273,-2000.0,0.00024388,2]
[345574599,1734363039283,-18227.67196578,0.00024432,2]
[345574601,1734363039291,-150.0,0.00024432,2]
[345574603,1734363039300,-2701.700626,0.00024498,2]
[345574605,1734363039309,-381.28,0.00024536,2]
[345574607,1734363039318,-264.20246487,0.00024587,2]
[345574609,1734363039327,-12529.2959,0.000246,2]
[345574610,1734363039336,-29224.02033645,0.000246,7]
[345574611,1734363039346,-850.77,0.00024613,2]
[345574613,1734363039355,-533.21219444,0.00024625,2]
[345574614,1734363039366,-151.24,0.00024648,2]
[345574615,1734363039376,-500.0,0.00024657,4]
[345574616,1734363039385,-500.0,0.00024657,4]
[345574617,1734363039394,-500.0,0.00024657,4]
[345574618,1734363039403,-500.0,0.00024657,4]
[345574619,1734363039412,-500.0,0.00024657,4]
[345574620,1734363039421,-500.0,0.00024657,4]
[345574621,1734363039430,-500.0,0.00024657,4]
[345574622,1734363039439,-500.0,0.00024657,4]
[345574624,1734363039448,-500.0,0.00024657,4]
[345574625,1734363039458,-500.0,0.00024657,4]
[345574626,1734363039467,-500.0,0.00024657,4]
[345574627,1734363039476,-500.0,0.00024657,4]
[345574628,1734363039485,-500.0,0.00024657,4]
[345574629,1734363039495,-500.0,0.00024657,4]
[345574630,1734363039504,-500.0,0.00024657,4]
[345574631,1734363039514,-500.0,0.00024657,4]
[345574632,1734363039523,-500.0,0.00024657,4]
[345574633,1734363039532,-500.0,0.00024657,4]
[345574634,1734363039542,-500.0,0.00024657,4]
[345574635,1734363039551,-500.0,0.00024657,4]
[345574636,1734363039560,-500.0,0.00024657,4]
[345574637,1734363039570,-500.0,0.00024657,4]
[345574638,1734363039579,-500.0,0.00024657,4]
[345574639,1734363039588,-500.0,0.00024657,4]
[345574640,1734363039597,-500.0,0.00024657,4]
[345574641,1734363039606,-515.59844933,0.00024657,4]
[345574642,1734363039617,-500.0,0.00024657,4]
[345574643,1734363039626,-500.0,0.00024657,4]
[345574644,1734363039636,-203.38812843,0.00024657,4]
[345574645,1734363039645,-500.0,0.00024657,4]
[345574646,1734363039655,-545.93289633,0.00024657,4]
[345574647,1734363039664,-3466.85,0.00024658,2]
[345574648,1734363039673,-871.46,0.00024658,2]
[345574649,1734363039683,-500.0,0.0002468,4]
[345574650,1734363039692,-552.17422705,0.0002468,4]
[345574651,1734363039702,-500.0,0.0002468,4]
[345574652,1734363039711,-500.0,0.0002468,4]
[345574653,1734363039721,-2000.0,0.00024698,2]
[345574654,1734363039730,-500.0,0.00024698,4]
[345574655,1734363039739,-500.0,0.00024698,4]
[345574656,1734363039748,-500.0,0.00024698,4]
[345574657,1734363039758,-189.77670026,0.00024698,4]
[345574658,1734363039768,-627.05929633,0.00024698,4]
[345574659,1734363039778,-500.0,0.00024698,4]
[345574660,1734363039788,-500.0,0.00024698,4]
[345574661,1734363039797,-500.0,0.00024698,4]
[345574662,1734363039806,-500.0,0.00024698,4]
[345574663,1734363039815,-500.0,0.00024698,4]
[345574664,1734363039824,-500.0,0.00024698,4]
[345574665,1734363039833,-500.0,0.00024698,4]
[345574666,1734363039842,-500.0,0.00024698,4]
[345574667,1734363039851,-500.0,0.00024698,4]
[345574668,1734363039860,-500.0,0.00024698,4]
[345574669,1734363039871,-501.61093019,0.00024698,4]
[345574670,1734363039880,-500.0,0.00024698,4]
[345574671,1734363039889,-500.0,0.00024698,4]
[345574672,1734363039899,-500.0,0.00024699,4]
[345574673,1734363039908,-501.52473278,0.00024699,4]
[345574674,1734363039917,-500.0,0.00024699,4]
[345574675,1734363039927,-500.0,0.00024699,4]
[345574676,1734363039936,-500.0,0.00024699,4]
[345574677,1734363039945,-500.0,0.00024699,4]
[345574678,1734363039957,-500.0,0.00024699,4]
[345574679,1734363039966,-186.06849328,0.00024699,4]
[345574680,1734363039976,-528.70635978,0.00024699,4]
[345574681,1734363039985,-500.52591345,0.00024699,4]
[345574682,1734363039995,-501.31356384,0.00024699,4]
[345574683,1734363040004,-471.49409939,0.00024699,4]
[345574684,1734363040013,-500.0,0.00024699,4]
[345574686,1734363040023,-500.0,0.00024699,4]
[345574687,1734363040033,-500.0,0.00024699,4]
[345574688,1734363040043,-500.0,0.00024699,4]
[345574689,1734363040057,-500.0,0.00024699,4]
[345574690,1734363040067,-500.0,0.00024699,4]
[345574691,1734363040077,-325.8921342,0.00024699,4]
[345574692,1734363040087,-500.0,0.00024699,4]
[345574693,1734363040097,-500.0,0.00024699,2]
[345574694,1734363040107,-500.0,0.00024699,4]
[345574695,1734363040118,-500.0,0.00024699,4]
[345574696,1734363040129,-577.69394722,0.00024699,4]
[345574697,1734363040139,-500.0,0.00024699,4]
[345574698,1734363040148,-500.0,0.00024699,4]
[345574699,1734363040159,-500.0,0.00024699,4]
[345574700,1734363040169,-500.0,0.00024699,4]
[345574701,1734363040178,-515.4746709,0.00024699,4]
[345574702,1734363040188,-500.0,0.00024699,4]
[345574703,1734363040197,-511.25997651,0.00024699,4]
[345574704,1734363040207,-500.0,0.00024699,4]
[345574705,1734363040216,-513.76476,0.00024699,4]
[345574706,1734363040226,-512.85485168,0.00024699,4]
[345574707,1734363040235,-509.29914945,0.00024699,4]
[345574708,1734363040244,-510.19575914,0.00024699,4]
[345574709,1734363040253,-510.73716831,0.00024699,4]
[345574710,1734363040262,-500.0,0.00024699,4]
[345574711,1734363040271,-516.4472395,0.00024699,4]
[345574712,1734363040281,-614.98,0.00024699,4]
[345574713,1734363040291,-512.382627,0.00024699,4]
[345574714,1734363040300,-509.48937328,0.00024699,4]
[345574715,1734363040310,-514.27850794,0.00024699,4]
[345574716,1734363040319,-505.17845752,0.00024699,4]
[345574718,1734363040329,-518.36041992,0.00024699,4]
[345574719,1734363040339,-517.67960942,0.00024699,4]
[345574720,1734363040348,-516.46682846,0.00024699,4]
[345574722,1734363040358,-500.0,0.00024699,4]
[345574724,1734363040372,-578.5452494,0.00024699,4]
[345574726,1734363040382,-533.89328356,0.00024699,4]
[345574728,1734363040393,-554.22694013,0.00024699,4]
[345574730,1734363040402,-509.46053649,0.00024699,4]
[345574732,1734363040412,-616.305,0.00024699,4]
[345574734,1734363040422,-500.0,0.00024699,4]
[345574736,1734363040431,-500.0,0.00024699,4]
[345574738,1734363040440,-500.0,0.00024699,4]
[345574740,1734363040450,-500.0,0.00024699,4]
[345574742,1734363040459,-500.0,0.00024699,4]
[345574743,1734363040468,-500.0,0.00024699,4]
[345574744,1734363040478,-500.0,0.00024699,4]
[345574745,1734363040487,-500.0,0.00024699,4]
[345574746,1734363040496,-500.0,0.00024699,4]
[345574747,1734363040506,-500.0,0.00024699,4]
[345574748,1734363040515,-507.55144323,0.00024699,4]
[345574749,1734363040524,-506.95092365,0.00024699,4]
[345574750,1734363040533,-623.94,0.00024699,4]
[345574751,1734363040543,-500.0,0.00024699,4]
[345574752,1734363040551,-500.0,0.00024699,4]
[345574753,1734363040560,-39276.18569106,0.000247,2]
[345574754,1734363040574,-60776.65160894,0.000247,2]
[345574755,1734363040584,-412.06573227,0.00024717,2]
[345574756,1734363040593,-150.0,0.00024729,2]
[345574757,1734363040603,-1500.0,0.0002474,2]
[345574758,1734363040614,-150.0,0.00024741,2]
[345574759,1734363040625,-150.0,0.00024744,2]
[345574760,1734363040634,-150.0,0.00024745,2]
[345574761,1734363040643,-150.0,0.00024753,2]
[345574762,1734363040652,-150.0,0.00024755,2]
[345574763,1734363040662,-150.0,0.00024759,2]
[345574764,1734363040671,-150.0,0.00024768,2]
[345574765,1734363040680,-1500.0,0.00024769,2]
[345574766,1734363040690,-150.0,0.00024772,2]
[345574767,1734363040699,-500.0,0.00024777,4]
[345574768,1734363040708,-500.0,0.00024777,4]
[345574769,1734363040717,-500.0,0.00024777,4]
[345574770,1734363040727,-320.8645673,0.00024777,4]
[345574771,1734363040736,-500.0,0.00024777,4]
[345574772,1734363040745,-526.16,0.00024777,4]
[345574773,1734363040755,-500.0,0.00024777,4]
[345574774,1734363040765,-500.0,0.00024777,4]
[345574775,1734363040774,-500.0,0.00024777,4]
[345574776,1734363040783,-500.0,0.00024777,4]
[345574777,1734363040794,-500.0,0.00024777,4]
[345574778,1734363040803,-500.0,0.00024778,4]
[345574779,1734363040812,-500.0,0.00024778,4]
[345574780,1734363040822,-31071.6583,0.00024779,2]
[345574781,1734363040831,-150.0,0.0002478,2]
[345574782,1734363040840,-150.0,0.00024792,2]
[345574783,1734363040850,-150.0,0.00024794,2]
[345574784,1734363040971,-150.0,0.00024797,2]
[345574785,1734363041006,-500.0,0.00024799,4]
[345574786,1734363041017,-500.0,0.00024799,4]